bitfinex-derivatives/quotes_BNBF0:USTF0_20250529
["timestamp","ask_amount","ask_price","bid_price","bid_amount"]
[1748493016647,0.29241476,683.96,682.52,0.57249846]
[1748493016849,0.29241476,683.96,682.5,0.404]
[1748493018150,0.29241476,683.96,682.51,0.57249735]
[1748493018344,0.29241476,683.96,682.52,0.57249768]
[1748493018549,0.29241476,683.96,682.5,0.404]
[1748493019145,0.29241476,683.96,682.51,0.57249638]
[1748493019352,0.29241476,683.96,682.52,0.57249638]
[1748493019547,0.29241476,683.96,682.53,0.57249689]
[1748493019847,0.29241476,683.96,682.5,0.404]
[1748493020254,0.29241476,683.96,682.51,0.57249635]
[1748493020453,0.29241476,683.96,682.5,0.404]
[1748493020853,0.29241476,683.96,682.5,0.8683759]
[1748493021052,0.29241476,683.96,682.51,0.4643759]
[1748493021256,0.29241476,683.96,682.5,0.8683759]
[1748493021550,0.29241476,683.96,682.51,0.57249575]
[1748493022253,0.29241476,683.96,682.52,0.57249598]
[1748493022451,0.29241476,683.96,682.53,0.57249593]
[1748493022650,0.29241476,683.96,682.51,0.57249575]
[1748493022651,0.29241476,683.96,682.54,0.57249071]
[1748493022852,0.29241476,683.96,682.55,0.57249071]
[1748493023054,0.29241476,683.96,682.51,0.57249575]
[1748493023251,0.29241476,683.96,682.52,0.57245835]
[1748493023456,0.29241476,683.96,682.53,0.57245835]
[1748493023654,0.29241476,683.96,682.54,0.57245835]
[1748493023851,0.29241476,683.96,682.55,0.57241411]
[1748493024052,0.29241476,683.96,682.58,0.46651223]
[1748493024254,0.29241476,683.96,682.59,0.57241411]
[1748493024453,0.29241476,683.96,682.6,0.57163277]
[1748493024651,0.29241476,683.96,682.58,0.46651223]
[1748493025657,0.29241476,683.96,682.56,0.39]
[1748493037962,0.29241476,683.96,682.57,0.498]
[1748493038963,0.29241476,683.96,682.57,0.96313729]
[1748493039170,0.29241476,683.96,682.57,0.498]
[1748493040566,0.29241476,683.96,682.57,0.96313729]
[1748493040770,0.29241476,683.96,682.57,0.498]
[1748493041266,0.29241476,683.96,682.6,0.46513729]
[1748493041771,0.29241476,683.96,682.57,0.498]
[1748493052981,0.29241476,683.96,682.58,0.32]
[1748493054183,0.29241476,683.96,682.58,0.78513729]
[1748493055183,0.29241476,683.96,682.61,0.46513729]
[1748493055782,0.29241476,683.96,682.72,0.46513729]
[1748493056282,0.29241476,683.96,682.78,0.46513729]
[1748493056786,0.29241476,683.96,682.58,0.32]
[1748493066499,0.29241476,683.96,682.59,1.04629359]
[1748493066701,0.29241476,683.96,682.6,1.04629359]
[1748493066897,0.29241476,683.96,682.61,1.04629359]
[1748493067097,0.29241476,683.96,682.62,1.04605125]
[1748493067298,0.29241476,683.96,682.63,1.04605125]
[1748493067495,0.29241476,683.96,682.64,1.04598855]
[1748493067698,0.29241476,683.96,682.65,1.04598855]
[1748493067900,0.29241476,683.96,682.66,1.04598855]
[1748493068097,0.29241476,683.96,682.67,1.04598855]
[1748493068393,0.29241476,683.96,682.68,1.04598855]
[1748493068595,0.29241476,683.96,682.69,1.04598855]
[1748493068794,0.29241476,683.96,682.7,1.04598855]
[1748493068999,0.29241476,683.96,682.71,1.04598855]
[1748493069194,0.29241476,683.96,682.58,0.32]
[1748493069195,0.29241476,683.96,682.72,1.04617922]
[1748493069498,0.29241476,683.96,682.73,1.04621294]
[1748493069798,0.29241476,683.96,682.58,0.32]
[1748493072901,0.29241476,683.96,682.59,1.04620804]
[1748493073201,0.29241476,683.96,682.58,0.32]
[1748493080902,0.29241476,683.96,682.57,0.498]
[1748493083202,0.29241476,683.96,682.58,1.04668761]
[1748493083405,0.29241476,683.96,682.58,0.458]
[1748493086407,0.29241476,683.96,682.59,1.04640308]
[1748493086604,0.29241476,683.96,682.58,0.458]
[1748493088203,0.29241476,683.96,682.59,1.04634153]
[1748493088408,0.29241476,683.96,682.6,1.04634052]
[1748493088608,0.29241476,683.96,682.58,0.458]
[1748493088908,0.29241476,683.96,682.59,1.04633971]
[1748493089110,0.29241476,683.96,682.6,1.04633971]
[1748493089308,0.29241476,683.96,682.61,1.04633971]
[1748493089507,0.29241476,683.96,682.58,0.458]
[1748493089708,0.29241476,683.96,682.59,1.04645416]
[1748493089907,0.29241476,683.96,682.6,1.04645416]
[1748493090207,0.29241476,683.96,682.61,1.04645416]
[1748493090409,0.29241476,683.96,682.62,1.04645416]
[1748493090607,0.29241476,683.96,682.63,1.04645416]
[1748493090812,0.29241476,683.96,682.64,1.04645416]
[1748493091014,0.29241476,683.96,682.58,0.458]
[1748493091313,0.29241476,683.96,682.59,1.04647935]
[1748493091513,0.29241476,683.96,682.58,0.458]
[1748493091915,0.29241476,683.96,682.59,1.04647935]
[1748493092111,0.29241476,683.96,682.6,1.04647935]
[1748493092312,0.29241476,683.96,682.58,0.458]
[1748493092313,0.29241476,683.96,682.61,1.04647935]
[1748493092511,0.29241476,683.96,682.62,1.04647935]
[1748493092710,0.29241476,683.96,682.58,0.458]
[1748493092912,0.29241476,683.96,682.59,1.04661467]
[1748493093115,0.29241476,683.96,682.58,0.458]
[1748493093510,0.29241476,683.96,682.59,1.04669809]
[1748493093711,0.29241476,683.96,682.6,1.0468187]
[1748493093916,0.29241476,683.96,682.61,1.0468187]
[1748493094116,0.29241476,683.96,682.62,1.0468187]
[1748493094417,0.29241476,683.96,682.58,0.458]
[1748493094617,0.29241476,683.96,682.59,1.04692307]
[1748493094814,0.29241476,683.96,682.6,1.04692307]
[1748493095015,0.29241476,683.96,682.58,0.458]
[1748493095315,0.29241476,683.96,682.59,1.04694376]
[1748493095509,0.29241476,683.96,682.58,0.458]
[1748493095911,0.29241476,683.96,682.59,1.04711846]
[1748493096111,0.29241476,683.96,682.6,1.04711846]
[1748493096316,0.29241476,683.96,682.58,0.458]
[1748493096913,0.29241476,683.96,682.59,1.04711803]
[1748493097116,0.29241476,683.96,682.58,0.458]
[1748493097316,0.29241476,683.96,682.59,1.04711732]
[1748493097516,0.29241476,683.96,682.6,1.0471176]
[1748493097711,0.29241476,683.96,682.59,0.519]
[1748493098312,0.29241476,683.96,682.6,1.04713833]
[1748493098615,0.29241476,683.96,682.61,1.04724558]
[1748493098815,0.29241476,683.96,682.62,1.04724558]
[1748493099017,0.29241476,683.96,682.59,0.519]
[1748493099018,0.29241476,683.96,682.63,1.04724515]
[1748493099217,0.29241476,683.96,682.59,0.519]
[1748493099613,0.29241476,683.96,682.6,1.04724669]
[1748493099818,0.29241476,683.96,682.59,0.519]
[1748493099819,0.29241476,683.96,682.61,1.04760496]
[1748493100011,0.29241476,683.96,682.62,1.04760668]
[1748493100211,0.29241476,683.96,682.59,0.519]
[1748493102217,0.29241476,683.96,682.6,1.04762717]
[1748493102419,0.29241476,683.96,682.61,1.04762717]
[1748493102719,0.29241476,683.96,682.59,0.519]
[1748493105314,0.29241476,683.96,682.6,1.0477173]
[1748493105515,0.29241476,683.96,682.59,0.519]
[1748493105516,0.29241476,683.96,682.61,1.0477173]
[1748493105721,0.29241476,683.96,682.59,0.519]
[1748493105917,0.29241476,683.96,682.6,1.04771735]
[1748493106118,0.29241476,683.96,682.59,0.519]
[1748493106421,0.29241476,683.96,682.6,1.04771766]
[1748493106619,0.29241476,683.96,682.59,0.519]
[1748493107616,0.29241476,683.96,682.6,0.377]
[1748493108421,0.29241476,683.96,682.61,1.04771716]
[1748493108621,0.29241476,683.96,682.6,0.377]
[1748493108921,0.29241476,683.96,682.61,1.04769637]
[1748493109118,0.29241476,683.96,682.62,1.04769637]
[1748493109316,0.29241476,683.96,682.63,1.04769637]
[1748493109518,0.29241476,683.96,682.6,0.377]
[1748493111116,0.29241476,683.96,682.61,1.0476946]
[1748493111316,0.29241476,683.96,682.62,1.04769568]
[1748493111520,0.29241476,683.96,682.6,0.377]
[1748493111717,0.29241476,683.96,682.61,1.04769568]
[1748493111921,0.29241476,683.96,682.62,1.04769568]
[1748493112120,0.29241476,683.96,682.63,1.04883687]
[1748493112422,0.29241476,683.96,682.6,0.377]
[1748493112617,0.29241476,683.96,682.61,1.04886884]
[1748493112817,0.29241476,683.96,682.62,1.04886884]
[1748493113021,0.29241476,683.96,682.63,1.04886884]
[1748493113221,0.29241476,683.96,682.64,1.04886884]
[1748493113421,0.29241476,683.96,682.65,1.04886884]
[1748493113621,0.29241476,683.96,682.66,1.04886884]
[1748493113820,0.29241476,683.96,682.67,1.04888857]
[1748493114123,0.29241476,683.96,682.68,1.0488885]
[1748493114318,0.29241476,683.96,682.69,1.0488885]
[1748493114520,0.29241476,683.96,682.6,0.377]
[1748493115024,0.29241476,683.96,682.61,1.0488885]
[1748493115223,0.29241476,683.96,682.6,0.377]
[1748493117022,0.29241476,683.96,682.61,1.04889061]
[1748493117229,0.29241476,683.96,682.62,1.04889321]
[1748493117422,0.29241476,683.96,682.6,0.377]
[1748493117621,0.29241476,683.96,682.61,1.04895205]
[1748493117824,0.29241476,683.96,682.6,0.377]
[1748493118523,0.29241476,683.96,682.61,1.04897063]
[1748493118723,0.29241476,683.96,682.62,1.04897171]
[1748493119223,0.29241476,683.96,682.63,1.04897141]
[1748493119428,0.29241476,683.96,682.62,1.04897171]
[1748493121224,0.29241476,683.96,682.63,1.04843499]
[1748493121429,0.29241476,683.96,682.62,1.04897171]
[1748493121830,0.29241476,683.96,682.63,1.04912566]
[1748493122128,0.29241476,683.96,682.62,1.04897171]
[1748493123333,0.29241476,683.96,682.63,1.04912566]
[1748493123533,0.29241476,683.96,682.64,1.04912566]
[1748493123731,0.29241476,683.96,682.65,1.04912566]
[1748493123933,0.29241476,683.96,682.66,1.04912566]
[1748493124133,0.29241476,683.96,682.67,1.04912566]
[1748493124333,0.29241476,683.96,682.62,1.04897171]
[1748493124536,0.29241476,683.96,682.63,1.05010409]
[1748493124733,0.29241476,683.96,682.64,1.05010409]
[1748493124932,0.29241476,683.96,682.65,1.05010409]
[1748493125133,0.29241476,683.96,682.66,1.05010409]
[1748493125331,0.29241476,683.96,682.67,1.05010409]
[1748493125837,0.29241476,683.96,682.68,1.05010409]
[1748493126033,0.29241476,683.96,682.69,1.04987433]
[1748493126230,0.29241476,683.96,682.7,1.04987433]
[1748493126428,0.29241476,683.96,682.71,1.04942121]
[1748493126634,0.29241476,683.96,682.62,1.04897171]
[1748493126832,0.29241476,683.96,682.63,1.04942377]
[1748493127031,0.29241476,683.96,682.64,1.04942377]
[1748493127233,0.29241476,683.96,682.65,1.04942377]
[1748493127430,0.29241476,683.96,682.62,1.04897171]
[1748493127431,0.29241476,683.96,682.66,1.04942377]
[1748493127631,0.29241476,683.96,682.67,1.04930156]
[1748493127835,0.29241476,683.96,682.68,1.04930156]
[1748493128034,0.29241476,683.96,682.62,1.04897171]
[1748493128233,0.29241476,683.96,682.63,1.04939755]
[1748493128536,0.29241476,683.96,682.62,1.04897171]
[1748493128734,0.29241476,683.96,682.63,1.04939755]
[1748493128933,0.29241476,683.96,682.64,1.04939755]
[1748493129238,0.29241476,683.96,682.62,1.04897171]
[1748493129639,0.29241476,683.96,682.63,1.04936088]
[1748493129840,0.29241476,683.96,682.62,1.04897171]
[1748493130135,0.29241476,683.96,682.63,1.04936072]
[1748493130341,0.29241476,683.96,682.62,1.04897171]
[1748493131538,0.29241476,683.96,682.63,1.04935865]
[1748493131741,0.29241476,683.96,682.62,1.04897171]
[1748493132042,0.29241476,683.96,682.63,1.04938099]
[1748493132341,0.29241476,683.96,682.62,1.04897171]
[1748493134043,0.29241476,683.96,682.63,1.04938152]
[1748493134239,0.29241476,683.96,682.62,1.04897171]
[1748493135141,0.29241476,683.96,682.63,1.04940231]
[1748493135344,0.29241476,683.96,682.64,1.04940223]
[1748493135538,0.29241476,683.96,682.62,1.04897171]
[1748493143751,0.29241476,683.96,682.63,0.491]
[1748493160366,0.29241476,683.96,682.64,0.459]
[1748493171371,0.29241476,683.96,682.63,0.491]
[1748493174878,0.29241476,683.96,682.64,0.442]
[1748493177881,0.29241476,683.96,682.65,0.352]
[1748493197099,0.29241476,683.96,682.64,0.442]
[1748493199002,0.29241476,683.96,682.65,0.445]
[1748493202301,0.25481252,683.64,682.65,0.445]
[1748493202504,0.29256019,683.62,682.65,0.445]
[1748493204306,0.29256019,683.62,682.66,0.334]
[1748493243529,0.29256019,683.62,682.67,0.535]
[1748493259645,0.29256019,683.62,682.66,0.334]
[1748493260444,0.29256019,683.62,682.0,0.46556979]
[1748493261650,0.29256019,683.62,682.01,0.462]
[1748493263248,0.29256019,683.62,682.02,0.394]
[1748493269043,0.25493198,683.23,682.02,0.394]
[1748493269249,0.29273576,683.21,682.02,0.394]
[1748493293067,0.29273576,683.21,682.01,0.462]
[1748493295870,0.29273576,683.21,682.02,0.325]
[1748493302578,0.29273576,683.21,682.03,0.496]
[1748493313689,0.29273576,683.21,682.04,1.05541465]
[1748493313989,0.29273576,683.21,682.03,0.496]
[1748493314190,0.29273576,683.21,682.04,1.05540664]
[1748493314386,0.29273576,683.21,682.03,0.496]
[1748493320199,0.29273576,683.21,682.04,0.377]
[1748493337908,0.29273576,683.21,682.05,0.382]
[1748493342119,0.29273576,683.21,682.06,0.397]
[1748493378157,0.29273576,683.21,681.22,0.46556979]
[1748493378457,0.29273576,683.21,681.23,0.46556979]
[1748493378757,0.29273576,683.21,681.36,0.46556979]
[1748493379456,0.29273576,683.21,681.37,0.46556979]
[1748493379659,0.29273576,683.21,681.44,0.46556979]
[1748493379855,0.29273576,683.21,681.46,0.46556979]
[1748493380551,0.29273576,683.21,681.13,0.25508241]
[1748493380552,0.29273576,683.21,681.47,0.46556979]
[1748493380751,0.29273576,683.21,681.62,0.46556979]
[1748493380953,0.29273576,683.21,681.63,0.46556979]
[1748493381357,0.29273576,683.21,681.64,0.46556979]
[1748493381858,0.29273576,683.21,681.66,0.46556979]
[1748493382157,0.29273576,683.21,681.65,0.87656979]
[1748493382452,0.29273576,683.21,681.67,0.46556979]
[1748493382958,0.29273576,683.21,681.7,0.46556979]
[1748493383158,0.29273576,683.21,681.68,0.46556979]
[1748493383453,0.29273576,683.21,681.65,0.411]
[1748493387362,0.29273576,683.21,681.65,0.87656979]
[1748493387963,0.29273576,683.21,681.66,0.46556979]
[1748493387964,0.25505904,682.83,681.66,0.46556979]
[1748493388164,0.29290725,682.81,681.66,0.46556979]
[1748493388364,0.29290725,682.81,681.67,0.46556979]
[1748493388663,0.29290725,682.81,681.68,0.46556979]
[1748493389463,0.29290725,682.81,681.67,0.46556979]
[1748493390264,0.29290725,682.81,681.68,0.46556979]
[1748493390462,0.29290725,682.81,681.65,0.411]
[1748493391465,0.29290725,682.81,681.66,0.46556979]
[1748493391765,0.29290725,682.81,681.65,0.411]
[1748493394467,0.29290725,682.81,681.66,0.46556979]
[1748493395068,0.29290725,682.81,681.67,0.46556979]
[1748493395463,0.29290725,682.81,681.65,0.87656979]
[1748493395863,0.29290725,682.81,681.65,0.411]
[1748493397466,0.29290725,682.81,681.65,0.87656979]
[1748493397871,0.29290725,682.81,681.65,0.46556979]
[1748493398473,0.29290725,682.81,681.71,0.46556979]
[1748493400568,0.29290725,682.81,681.72,0.428]
[1748493405375,0.29290725,682.81,681.77,0.46556979]
[1748493407280,0.29290725,682.81,681.82,0.46556979]
[1748493407583,0.29290725,682.81,681.81,0.46556979]
[1748493407979,0.29290725,682.81,681.72,0.428]
[1748493419990,0.29290725,682.81,681.73,0.424]
[1748493435106,0.29290725,682.81,681.72,0.428]
[1748493437413,0.29290725,682.81,681.73,0.516]
[1748493457132,0.29290725,682.81,681.74,0.394]
[1748493482042,0.29290725,682.81,680.61,0.25525548]
[1748493484442,0.29290725,682.81,680.69,0.46556979]
[1748493484644,0.29290725,682.81,680.66,0.46556979]
[1748493484843,0.29290725,682.81,680.7,0.391]
[1748493485646,0.29290725,682.81,680.7,0.85656979]
[1748493485844,0.29290725,682.81,680.7,0.391]
[1748493489847,0.29290725,682.81,680.7,0.85656979]
[1748493490047,0.29290725,682.81,680.8,0.46556979]
[1748493490349,0.29290725,682.81,680.81,0.46556979]
[1748493490548,0.29290725,682.81,680.8,0.46556979]
[1748493490848,0.29290725,682.81,680.7,0.391]
[1748493490849,0.29290725,682.81,680.81,0.46556979]
[1748493491348,0.29290725,682.81,680.83,0.46556979]
[1748493491746,0.29290725,682.81,680.84,0.46556979]
[1748493491945,0.29290725,682.81,680.85,0.46556979]
[1748493492153,0.29290725,682.81,680.89,0.46556979]
[1748493492346,0.29290725,682.81,680.93,0.46556979]
[1748493492743,0.29290725,682.81,680.7,0.391]
[1748493492744,0.29290725,682.81,680.94,0.46556979]
[1748493492946,0.29290725,682.81,681.05,0.46556979]
[1748493493146,0.25505904,682.83,681.08,0.46556979]
[1748493493351,0.25505904,682.83,681.09,0.46556979]
[1748493493551,0.25505904,682.83,681.11,0.46556979]
[1748493494153,0.25505904,682.83,681.12,0.46556979]
[1748493495149,0.25505904,682.83,681.11,0.46556979]
[1748493495351,0.25505904,682.83,681.12,0.46556979]
[1748493495752,0.25505904,682.83,681.11,0.46556979]
[1748493495954,0.25505904,682.83,681.12,0.46556979]
[1748493496158,0.25505904,682.83,681.09,0.46556979]
[1748493496659,0.25505904,682.83,681.1,0.46556979]
[1748493496855,0.25505904,682.83,681.11,0.46556979]
[1748493497359,0.25505904,682.83,681.12,0.46556979]
[1748493498254,0.25505904,682.83,681.11,0.46556979]
[1748493498457,0.25505904,682.83,681.12,0.46556979]
[1748493498655,0.25505904,682.83,681.09,0.46556979]
[1748493499362,0.25505904,682.83,681.1,0.46556979]
[1748493499555,0.25505904,682.83,681.13,0.46556979]
[1748493500861,0.25505904,682.83,681.12,0.46556979]
[1748493501554,0.25505904,682.83,680.7,0.391]
[1748493501555,0.25505904,682.83,681.13,0.46556979]
[1748493502861,0.25505904,682.83,680.81,0.46556979]
[1748493503061,0.25505904,682.83,680.82,0.46556979]
[1748493503356,0.25505904,682.83,680.83,0.46556979]
[1748493503561,0.25505904,682.83,680.85,0.46556979]
[1748493503958,0.25505904,682.83,680.86,0.46556979]
[1748493504561,0.25505904,682.83,680.84,0.46556979]
[1748493504756,0.25505904,682.83,680.7,0.46556979]
[1748493504961,0.25505904,682.83,680.85,0.523]
[1748493505563,0.25505904,682.83,680.9,0.46556979]
[1748493505764,0.25505904,682.83,680.92,0.46556979]
[1748493506364,0.25505904,682.83,680.94,0.46556979]
[1748493506564,0.25505904,682.83,680.93,0.46556979]
[1748493506763,0.25505904,682.83,680.94,0.46556979]
[1748493507663,0.25505904,682.83,680.95,0.419]
[1748493507959,0.25505904,682.83,680.95,0.88456979]
[1748493509366,0.25505904,682.83,680.95,0.419]
[1748493516268,0.25505904,682.83,680.97,0.46556979]
[1748493516468,0.25505904,682.83,680.95,0.419]
[1748493516469,0.25505904,682.83,680.95,0.88456979]
[1748493516870,0.25505904,682.83,680.95,0.419]
[1748493517669,0.25505904,682.83,680.98,0.46556979]
[1748493518263,0.25505904,682.83,680.99,0.46556979]
[1748493518465,0.25505904,682.83,680.95,0.419]
[1748493518466,0.25505904,682.83,681.0,0.46556979]
[1748493518969,0.25505904,682.83,681.01,0.463]
[1748493519166,0.25505904,682.83,681.05,0.46556979]
[1748493519372,0.25505904,682.83,681.24,0.46556979]
[1748493520067,0.25505904,682.83,681.25,0.46556979]
[1748493520271,0.25505904,682.83,681.01,0.463]
[1748493525074,0.25505904,682.83,681.22,0.46556979]
[1748493525269,0.29290725,682.81,681.22,0.46556979]
[1748493526073,0.29290725,682.81,681.23,0.46556979]
[1748493526669,0.29290725,682.81,681.24,0.46556979]
[1748493527475,0.29290725,682.81,681.23,0.46556979]
[1748493527876,0.29290725,682.81,681.01,0.463]
[1748493527877,0.29290725,682.81,681.22,0.46556979]
[1748493528275,0.29290725,682.81,681.21,0.46556979]
[1748493528473,0.29290725,682.81,681.2,0.46556979]
[1748493528676,0.29290725,682.81,681.21,0.46556979]
[1748493528874,0.29290725,682.81,681.2,0.46556979]
[1748493529072,0.29290725,682.81,681.24,0.46556979]
[1748493529474,0.29290725,682.81,681.21,0.46556979]
[1748493529776,0.29290725,682.81,681.19,0.46556979]
[1748493529978,0.29290725,682.81,681.16,0.46556979]
[1748493530173,0.29290725,682.81,681.01,0.463]
[1748493530174,0.29290725,682.81,681.15,0.46556979]
[1748493530378,0.29290725,682.81,681.14,0.46556979]
[1748493531178,0.29290725,682.81,681.15,0.46556979]
[1748493531378,0.29290725,682.81,681.26,0.46556979]
[1748493531578,0.29290725,682.81,681.53,0.46556979]
[1748493531980,0.29290725,682.81,681.54,0.46556979]
[1748493532377,0.29290725,682.81,681.02,0.36295291]
[1748493532378,0.29290725,682.81,681.53,0.46556979]
[1748493532781,0.29290725,682.81,681.54,0.46556979]
[1748493534678,0.29290725,682.81,681.53,0.46556979]
[1748493534978,0.29290725,682.81,681.26,0.46556979]
[1748493535183,0.29290725,682.81,681.24,0.46556979]
[1748493536882,0.29290725,682.81,681.23,0.46556979]
[1748493537478,0.29290725,682.81,681.24,0.46556979]
[1748493537977,0.29290725,682.81,681.23,0.46556979]
[1748493538183,0.29290725,682.81,681.2,0.46556979]
[1748493539378,0.29290725,682.81,681.01,0.463]
[1748493539379,0.29290725,682.81,681.17,0.46556979]
[1748493539978,0.29290725,682.81,681.18,0.46556979]
[1748493540183,0.29290725,682.81,681.17,0.46556979]
[1748493541381,0.29290725,682.81,681.01,0.463]
[1748493541382,0.29290725,682.81,681.11,0.46556979]
[1748493541586,0.29290725,682.81,681.12,0.46556979]
[1748493542385,0.29290725,682.81,681.13,0.46556979]
[1748493542582,0.29290725,682.81,681.12,0.46556979]
[1748493542783,0.29290725,682.81,681.19,0.46556979]
[1748493543287,0.29290725,682.81,681.23,0.46556979]
[1748493543887,0.29290725,682.81,681.01,0.463]
[1748493543888,0.29290725,682.81,681.22,0.46556979]
[1748493544088,0.29290725,682.81,681.25,0.46556979]
[1748493544284,0.29290725,682.81,681.24,0.46556979]
[1748493544484,0.29290725,682.81,681.25,0.46556979]
[1748493544890,0.29290725,682.81,681.33,0.46556979]
[1748493545088,0.29290725,682.81,681.35,0.46556979]
[1748493545390,0.29290725,682.81,681.49,0.46556979]
[1748493545584,0.29290725,682.81,681.5,0.46556979]
[1748493546185,0.29290725,682.81,681.32,0.46556979]
[1748493546389,0.29290725,682.81,681.33,0.46556979]
[1748493546686,0.29290725,682.81,681.22,0.46556979]
[1748493547485,0.29290725,682.81,681.23,0.46556979]
[1748493547889,0.29290725,682.81,681.01,0.463]
[1748493547890,0.29290725,682.81,681.26,0.46556979]
[1748493548385,0.29290725,682.81,681.28,0.46556979]
[1748493548991,0.29290725,682.81,681.29,0.499]
[1748493549292,0.29290725,682.81,681.29,0.96456979]
[1748493549484,0.29290725,682.81,681.3,0.46556979]
[1748493550190,0.29290725,682.81,681.29,0.96456979]
[1748493550386,0.29290725,682.81,681.3,0.46556979]
[1748493550590,0.29290725,682.81,681.32,0.46556979]
[1748493551191,0.29290725,682.81,681.3,0.46556979]
[1748493551789,0.29290725,682.81,681.31,0.46556979]
[1748493552396,0.29290725,682.81,681.32,0.46556979]
[1748493553595,0.29290725,682.81,681.34,0.46556979]
[1748493554292,0.29290725,682.81,681.35,0.46556979]
[1748493555296,0.29290725,682.81,681.36,0.46556979]
[1748493555997,0.29290725,682.81,681.44,0.46556979]
[1748493556492,0.29290725,682.81,681.45,0.46556979]
[1748493556697,0.29290725,682.81,681.59,0.46556979]
[1748493557396,0.29290725,682.81,681.6,0.46556979]
[1748493558298,0.29290725,682.81,681.61,0.46556979]
[1748493558693,0.29290725,682.81,681.52,0.46556979]
[1748493559393,0.29290725,682.81,681.53,0.46556979]
[1748493560098,0.29290725,682.81,681.54,0.46556979]
[1748493560494,0.29290725,682.81,681.57,0.46556979]
[1748493561200,0.29290725,682.81,681.61,0.46556979]
[1748493561395,0.29290725,682.81,681.62,0.46556979]
[1748493561999,0.29290725,682.81,681.65,0.46556979]
[1748493562198,0.29290725,682.81,681.29,0.499]
[1748493562199,0.29290725,682.81,681.64,0.46556979]
[1748493562702,0.29290725,682.81,681.29,0.499]
[1748493562703,0.29290725,682.81,681.65,0.46556979]
[1748493564201,0.29290725,682.81,681.29,0.499]
[1748493564202,0.29290725,682.81,681.66,0.46556979]
[1748493564600,0.29290725,682.81,681.64,0.46556979]
[1748493565805,0.29290725,682.81,681.29,0.499]
[1748493565806,0.29290725,682.81,681.63,0.46556979]
[1748493566113,0.29290725,682.81,681.62,0.46556979]
[1748493566614,0.29290725,682.81,681.52,0.46556979]
[1748493568514,0.29290725,682.81,681.53,0.46556979]
[1748493568714,0.29290725,682.81,681.57,0.46556979]
[1748493570812,0.29290725,682.81,681.49,0.46556979]
[1748493572017,0.29290725,682.81,681.5,0.46556979]
[1748493573819,0.29290725,682.81,681.52,0.46556979]
[1748493575016,0.29290725,682.81,681.53,0.46556979]
[1748493575720,0.29290725,682.81,681.54,0.46556979]
[1748493576518,0.29290725,682.81,681.62,0.46556979]
[1748493577621,0.29290725,682.81,681.58,0.46556979]
[1748493577822,0.29290725,682.81,681.57,0.46556979]
[1748493578220,0.29290725,682.81,681.56,0.46556979]
[1748493578420,0.29290725,682.81,681.57,0.46556979]
[1748493578817,0.29290725,682.81,681.29,0.499]
[1748493578818,0.29290725,682.81,681.58,0.83556979]
[1748493579917,0.29290725,682.81,681.58,0.37]
[1748493580820,0.29290725,682.81,681.68,0.46556979]
[1748493582126,0.29290725,682.81,681.58,0.37]
[1748493588435,0.25511794,682.61,681.58,0.37]
[1748493588634,0.29300165,682.59,681.58,0.37]
[1748493593640,0.29300165,682.59,681.59,0.339]
[1748493594237,0.29300165,682.59,681.6,0.46556979]
[1748493594436,0.29300165,682.59,681.59,0.80456979]
[1748493595937,0.29300165,682.59,681.61,0.46556979]
[1748493596142,0.29300165,682.59,681.62,0.46556979]
[1748493596742,0.29300165,682.59,681.61,0.46556979]
[1748493597642,0.29300165,682.59,681.59,0.339]
[1748493601449,0.29300165,682.59,681.73,0.46556979]
[1748493601646,0.29300165,682.59,681.7,0.46556979]
[1748493602047,0.29300165,682.59,681.76,0.46556979]
[1748493602251,0.29300165,682.59,681.74,0.46556979]
[1748493602446,0.29300165,682.59,681.75,0.46556979]
[1748493602752,0.29300165,682.59,681.74,0.46556979]
[1748493603251,0.29300165,682.59,681.75,0.46556979]
[1748493603849,0.29300165,682.59,681.63,0.46556979]
[1748493604452,0.29300165,682.59,681.62,0.46556979]
[1748493604947,0.29300165,682.59,681.59,0.339]
[1748493614657,0.29300165,682.59,681.6,0.507]
[1748493630070,0.29300165,682.59,681.61,0.4]
[1748493652478,0.29300165,682.59,681.62,0.332]
[1748493667488,0.29300165,682.59,681.63,0.527]
[1748493694620,0.29300165,682.59,681.64,0.499]
[1748493707633,0.29300165,682.59,681.63,0.527]
[1748493710134,0.29300165,682.59,681.64,0.329]
[1748493710633,0.25509269,682.72,681.64,0.329]
[1748493714633,0.25509269,682.72,681.65,0.469]
[1748493735661,0.25509269,682.72,681.64,0.329]
[1748493738264,0.25509269,682.72,681.65,0.504]
[1748493738562,0.29295444,682.7,681.65,0.504]
[1748493743671,0.29295444,682.7,681.66,0.512]
[1748493778190,0.29295444,682.7,681.67,0.457]
[1748493791810,0.29295444,682.7,681.68,0.41]
[1748493799917,0.25518435,682.45,681.68,0.41]
[1748493800118,0.29306605,682.44,681.68,0.41]
[1748493817926,0.29306605,682.44,680.39,0.46556979]